bitfinex-derivatives/quotes_SOLF0:USTF0_20260207
["timestamp","ask_amount","ask_price","bid_price","bid_amount"]
[1770434436698,4.9696187,87.95,87.913,60.47117355]
[1770434437000,4.9696187,87.94,87.913,50.22687355]
[1770434437697,4.9696187,87.92,87.896,51.39658612]
[1770434438804,159.1817,88.01,87.896,51.39658612]
[1770434438805,4.9696187,87.95,87.896,51.39658612]
[1770434439197,4.9696187,87.95,87.921,10.2433]
[1770434439397,4.9696187,87.96,87.921,51.39658612]
[1770434440903,4.9696187,87.96,87.928,10.2425]
[1770434442806,4.9696187,87.95,87.921,51.39658612]
[1770434443211,4.9696187,87.96,87.921,51.39658612]
[1770434443506,1.87e-05,87.96,87.93,10.2423]
[1770434444300,1.87e-05,87.96,87.871,34.16]
[1770434444301,45.25219686,88.008,87.939,51.39658612]
[1770434444507,4.9696187,87.99,87.939,51.39658612]
[1770434444701,4.9696187,88.0,87.939,51.39658612]
[1770434444899,4.9696187,87.99,87.959,10.2389]
[1770434445303,1.87e-05,87.98,87.959,10.2389]
[1770434445495,4.9696187,87.99,87.959,10.2389]
[1770434445699,1.87e-05,87.99,87.959,10.2389]
[1770434446101,1.87e-05,88.0,87.969,10.2377]
[1770434446301,4.9696187,88.01,87.969,61.63428612]
[1770434446496,4.9696187,88.0,87.969,10.2377]
[1770434446807,4.9696187,88.0,87.94,4.9696187]
[1770434446808,4.9696187,88.0,87.957,61.63568612]
[1770434447409,45.70399065,88.009,87.957,61.63568612]
[1770434448102,46.05491115,87.999,87.944,10.2406]
[1770434448313,46.05491115,87.999,87.944,61.63718612]
[1770434449297,13.29616253,88.02,87.956,51.39658612]
[1770434449712,46.27177367,88.019,87.956,51.39658612]
[1770434450406,46.27177367,88.019,87.96,51.39658612]
[1770434451703,46.27177367,88.019,87.97,10.2376]
[1770434453304,46.27177367,88.019,87.96,61.63538612]
[1770434453606,46.27177367,88.019,87.96,51.39658612]
[1770434453805,46.27177367,88.019,87.969,10.2378]
[1770434453998,46.27177367,88.019,87.946,51.39658612]
[1770434454396,46.27177367,88.019,87.954,10.2394]
[1770434454803,46.27177367,88.019,87.946,51.39658612]
[1770434455402,46.53528322,88.009,87.948,51.39658612]
[1770434456809,46.53528322,88.009,87.955,10.2393]
[1770434457605,46.53528322,88.009,87.948,51.39658612]
[1770434459406,46.50317772,87.989,87.918,51.39658612]
[1770434460707,44.81683599,87.987,87.918,51.39658612]
[1770434461709,44.83994458,87.984,87.918,51.39658612]
[1770434463211,13.29909906,87.99,87.918,51.39658612]
[1770434463511,44.64984176,87.997,87.918,51.39658612]
[1770434463814,44.6714502,87.989,87.918,51.39658612]
[1770434464114,44.6714502,87.989,87.9,13.29909906]
[1770434464115,44.6714502,87.989,87.921,51.39658612]
[1770434464713,45.15916054,87.987,87.921,51.39658612]
[1770434466207,55.53219859,87.984,87.921,51.39658612]
[1770434466705,55.53219859,87.984,87.923,52.75187298]
[1770434467811,45.12675726,87.975,87.923,52.75187298]
[1770434468215,45.12675726,87.969,87.923,52.75187298]
[1770434469615,4.96929321,87.95,87.923,52.75187298]
[1770434470219,4.96929321,87.94,87.909,54.29421407]
[1770434472818,50.11756375,87.94,87.89,54.29421407]
[1770434473122,4.96929321,87.91,87.876,54.29421407]
[1770434474420,4.96929321,87.92,87.876,54.29421407]
[1770434475417,4.96929321,87.93,87.88,54.29421407]
[1770434476018,4.96929321,87.95,87.892,54.29421407]
[1770434477825,4.96929321,87.95,87.898,54.29421407]
[1770434478426,55.45088249,87.971,87.911,10.2444]
[1770434478620,4.96929321,87.97,87.912,54.29421407]
[1770434479117,4.96929321,87.97,87.931,54.29421407]
[1770434479318,4.96929321,87.98,87.931,54.29421407]
[1770434479622,45.13261961,87.986,87.931,54.29421407]
[1770434483026,45.13261961,87.986,87.933,64.53611407]
[1770434483828,45.45026493,87.998,87.941,64.53521407]
[1770434484821,45.45026493,87.998,87.941,54.29421407]
[1770434486722,45.00107063,87.989,87.941,54.29421407]
[1770434488320,45.00107063,87.989,87.89,13.30236217]
[1770434488321,45.00107063,87.989,87.91,54.29421407]
[1770434489627,45.00107063,87.989,87.912,54.29421407]
[1770434491822,45.26883838,87.987,87.912,54.29421407]
[1770434492624,10.236,87.985,87.912,54.29421407]
[1770434492820,45.05395145,87.984,87.912,54.29421407]
[1770434493829,45.05902174,87.98,87.912,54.29421407]
[1770434495226,45.05902174,87.98,87.914,54.29421407]
[1770434496026,45.25284713,87.978,87.914,54.29421407]
[1770434497439,10.2369,87.977,87.917,55.15982394]
[1770434497732,45.25309526,87.976,87.917,55.15982394]
[1770434497933,45.25309526,87.976,87.919,55.15982394]
[1770434498828,45.34869459,87.989,87.923,55.15982394]
[1770434499435,4.96643038,87.98,87.923,55.15982394]
[1770434499635,4.96643038,87.98,87.927,55.15982394]
[1770434500238,50.32371622,87.98,87.927,55.15982394]
[1770434500541,4.96643038,87.96,87.927,55.15982394]
[1770434501137,50.32371622,87.97,87.928,65.40242394]
[1770434501530,4.96643038,87.96,87.928,65.40242394]
[1770434501730,50.32371622,87.97,87.928,65.40242394]
[1770434504538,50.41254804,87.94,87.902,55.15982394]
[1770434504738,4.96643038,87.93,87.902,55.15982394]
[1770434505743,4.96643038,87.93,87.902,65.40542394]
[1770434511644,3.038e-05,87.93,87.902,65.40542394]
[1770434512646,3.038e-05,87.93,87.902,55.15982394]
[1770434513946,50.41254804,87.94,87.902,55.15982394]
[1770434515339,4.96643038,87.93,87.902,55.15982394]
[1770434516542,50.41254804,87.94,87.902,55.15982394]
[1770434517134,4.96643038,87.93,87.902,55.15982394]
[1770434517541,50.41733903,87.94,87.902,55.15982394]
[1770434520447,4.97122137,87.93,87.89,55.15982394]
[1770434521042,4.97122137,87.93,87.819,159.5257]
[1770434521043,51.27207393,87.979,87.902,55.15982394]
[1770434521239,4.97122137,87.97,87.902,55.15982394]
[1770434522044,4.97122137,87.96,87.902,55.15982394]
[1770434522447,4.97122137,87.93,87.871,55.15982394]
[1770434522647,4.97122137,87.92,87.871,55.15982394]
[1770434524739,4.97122137,87.91,87.871,55.15982394]
[1770434524945,4.97122137,87.9,87.871,55.15982394]
[1770434525251,4.97122137,87.91,87.871,55.15982394]
[1770434527454,4.97122137,87.9,87.871,55.15982394]
[1770434533858,4.97122137,87.91,87.871,55.15982394]
[1770434534853,4.97122137,87.9,87.871,55.15982394]
[1770434540566,4.97122137,87.91,87.871,55.15982394]
[1770434543372,4.97122137,87.9,87.871,55.15982394]
[1770434544870,4.97122137,87.89,87.871,55.15982394]
[1770434545870,4.97122137,87.89,87.845,53.83212399]
[1770434546567,4.97122137,87.88,87.847,53.83212399]
[1770434546866,56.32918005,87.89,87.847,53.83212399]
[1770434547458,4.97122137,87.89,87.847,53.83212399]
[1770434547673,3.31733109,87.89,87.847,53.83212399]
[1770434549166,10.245,87.907,87.85,53.83212399]
[1770434549367,3.31733109,87.9,87.85,57.14945508]
[1770434549674,3.31733109,87.89,87.85,53.83212399]
[1770434550770,3.31733109,87.88,87.852,53.83212399]
[1770434551369,3.31733109,87.88,87.781,27.44382031]
[1770434551370,3.31733109,87.87,87.81,3.31733109]
[1770434551967,3.31733109,87.87,87.833,10.2536]
[1770434552172,3.31733109,87.88,87.833,10.2536]
[1770434553470,3.31733109,87.87,87.834,53.83212399]
[1770434554181,3.31733109,87.86,87.834,53.83212399]
[1770434554474,3.31733109,87.85,87.822,53.83212399]
[1770434555379,3.31733109,87.85,87.814,53.83212399]
[1770434556476,3.31733109,87.86,87.814,53.83212399]
[1770434556679,3.31733109,87.86,87.815,10.2557]
[1770434556979,3.31733109,87.86,87.816,56.5058926]
[1770434557581,3.31733109,87.85,87.816,56.5058926]
[1770434557981,3.31733109,87.86,87.818,56.5058926]
[1770434558573,55.31696586,87.874,87.827,56.5058926]
[1770434558574,3.31733109,87.87,87.827,56.5058926]
[1770434559584,3.31733109,87.86,87.827,56.5058926]
[1770434559783,55.31696586,87.906,87.831,56.5058926]
[1770434559980,3.31733109,87.87,87.831,56.5058926]
[1770434560285,3.31733109,87.88,87.851,66.7573926]
[1770434560472,3.31733109,87.89,87.851,66.7573926]
[1770434561078,3.31733109,87.89,87.83,3.31733109]
[1770434561079,3.109e-05,87.89,87.862,56.5058926]
[1770434562678,3.109e-05,87.89,87.865,10.2499]
[1770434562979,3.31733109,87.9,87.865,10.2499]
[1770434563884,3.109e-05,87.9,87.877,10.2485]
[1770434564786,159.38,87.969,87.877,10.2485]
[1770434564787,3.109e-05,87.91,87.885,10.2476]
[1770434565183,1.98025436,87.941,87.864,56.5058926]
[1770434565184,3.109e-05,87.9,87.864,56.5058926]
[1770434565386,3.109e-05,87.88,87.829,56.5058926]
[1770434565992,3.109e-05,87.89,87.871,10.2491]
[1770434566184,55.31696586,87.911,87.86,56.5058926]
[1770434566385,55.31696586,87.94,87.86,56.5058926]
[1770434566987,55.31696586,87.94,87.89,10.247]
[1770434567185,55.31696586,87.94,87.873,56.5058926]
[1770434568491,55.31696586,87.938,87.86,56.5058926]
[1770434569783,55.31696586,87.928,87.86,56.5058926]
[1770434570595,55.31696586,87.924,87.86,56.5058926]
[1770434571388,55.31696586,87.921,87.86,56.5058926]
[1770434572796,55.31696586,87.919,87.86,56.5058926]
[1770434573398,55.31696586,87.917,87.86,56.5058926]
[1770434574691,55.31696586,87.912,87.839,56.5058926]
[1770434575594,10.2473,87.888,87.816,10.2555]
[1770434575796,55.31696586,87.887,87.817,56.5058926]
[1770434577086,10.2476,87.886,87.817,56.5058926]
[1770434577288,55.31696586,87.885,87.817,56.5058926]
[1770434578699,10.2491,87.873,87.817,56.5058926]
[1770434578900,55.31696586,87.885,87.817,56.5058926]
[1770434579600,10.25,87.865,87.817,56.5058926]
[1770434581499,55.31696586,87.854,87.8,56.5058926]
[1770434582097,65.56816586,87.854,87.8,56.5058926]
[1770434582298,10.2512,87.854,87.8,56.5058926]
[1770434583500,10.2502,87.863,87.8,56.5058926]
[1770434583695,55.31696586,87.924,87.804,56.5058926]
[1770434583894,55.31696586,87.924,87.813,56.5058926]
[1770434584103,10.2469,87.891,87.821,56.5058926]
[1770434584296,55.31696586,87.892,87.821,56.5058926]
[1770434585302,10.2493,87.871,87.821,56.5058926]
[1770434587705,57.77423929,87.88,87.821,56.5058926]
[1770434587904,20.4861,87.924,87.821,56.5058926]
[1770434587905,57.77423929,87.923,87.821,56.5058926]
[1770434588303,10.2467,87.893,87.823,56.05000759]
[1770434589003,10.2467,87.893,87.834,56.05000759]
[1770434589601,55.18358056,87.898,87.838,56.05000759]
[1770434590810,55.18358056,87.898,87.841,56.05000759]
[1770434591410,55.18358056,87.898,87.842,10.2525]
[1770434591610,55.18358056,87.898,87.843,56.05000759]
[1770434592705,55.18358056,87.898,87.788,34.2]
[1770434592706,55.18358056,87.898,87.845,56.05000759]
[1770434593802,55.18358056,87.898,87.847,56.05000759]
[1770434594504,55.18358056,87.898,87.85,56.05000759]
[1770434595806,55.18358056,87.898,87.853,56.05000759]
[1770434596601,55.18358056,87.898,87.854,10.2512]
[1770434596802,55.18358056,87.898,87.855,56.05000759]
[1770434597811,55.18358056,87.898,87.856,66.30090759]
[1770434602509,55.18358056,87.898,87.864,10.25]
[1770434606615,55.18358056,87.898,87.872,10.2491]
[1770434607710,10.61762056,87.955,87.866,56.05000759]
[1770434607912,159.38,87.972,87.866,56.05000759]
[1770434608418,1.98013605,87.951,87.866,56.05000759]
[1770434609720,55.18358056,87.95,87.905,10.2452]
[1770434612117,55.18358056,87.95,87.899,56.05000759]
[1770434613714,55.18358056,87.95,87.923,10.2431]
[1770434615213,55.18358056,87.95,87.91,56.05000759]
[1770434615611,159.34,88.011,87.91,56.05000759]
[1770434615817,55.02384034,87.986,87.91,56.05000759]
[1770434616124,55.02384034,87.986,87.929,55.05641961]
[1770434617118,55.02384034,87.986,87.871,55.05641961]
[1770434617320,55.02384034,87.986,87.875,55.05641961]
[1770434617721,55.02384034,87.986,87.896,55.05641961]
[1770434618723,55.02384034,87.973,87.896,55.05641961]
[1770434619119,55.02384034,87.973,87.9,55.05641961]
[1770434619725,55.02384034,87.973,87.904,55.05641961]
[1770434620620,55.02384034,87.973,87.916,10.2439]
[1770434620823,55.02384034,87.973,87.917,55.05641961]
[1770434624025,55.02384034,87.971,87.917,55.05641961]
[1770434624225,55.02384034,87.971,87.888,55.05641961]
[1770434625729,55.02384034,87.956,87.888,55.05641961]
[1770434629332,55.02384034,87.954,87.888,55.05641961]
[1770434630825,55.02384034,87.95,87.888,55.05641961]
[1770434632036,55.02384034,87.947,87.888,55.05641961]
[1770434632530,55.02384034,87.943,87.888,55.05641961]
[1770434633138,20.47,87.994,87.888,55.05641961]
[1770434633139,55.02384034,87.941,87.888,55.05641961]
[1770434633725,55.02384034,87.929,87.867,55.05641961]
[1770434634637,55.02384034,87.925,87.867,55.05641961]
[1770434635035,10.2444,87.913,87.854,55.05641961]
[1770434635236,55.02384034,87.944,87.854,55.05641961]
[1770434636737,55.02384034,87.926,87.856,55.05641961]
[1770434637542,65.26684034,87.925,87.859,55.05641961]
[1770434640144,55.02384034,87.915,87.859,55.05641961]
[1770434641149,55.02384034,87.915,87.862,55.05641961]
[1770434641345,55.02384034,87.945,87.862,55.05641961]
[1770434642851,55.02384034,87.934,87.862,55.05641961]
[1770434643950,55.02384034,87.934,87.879,55.05641961]
[1770434644352,65.26594034,87.932,87.879,55.05641961]
[1770434644946,65.26594034,87.932,87.816,27.44382031]
[1770434644947,55.02384034,87.916,87.859,55.05641961]
[1770434645452,55.02384034,87.914,87.859,55.05641961]
[1770434645953,55.02384034,87.914,87.871,60.71695817]
[1770434646252,57.57521489,87.937,87.871,60.71695817]
[1770434647049,57.57521489,87.935,87.871,60.71695817]
[1770434648857,58.72002754,87.959,87.882,61.63367141]
[1770434649054,58.72002754,87.988,87.884,61.63367141]
[1770434649250,58.72002754,87.988,87.898,61.63367141]
[1770434649449,58.72002754,87.988,87.915,61.63367141]
[1770434650055,58.72002754,87.988,87.926,61.63367141]
[1770434652259,58.72002754,87.988,87.928,61.63367141]
[1770434653054,58.72002754,87.988,87.93,61.63367141]
[1770434657863,58.72002754,87.982,87.93,61.63367141]
[1770434665370,10.2364,87.981,87.93,61.63367141]
[1770434666266,10.2352,87.992,87.93,61.63367141]
[1770434666766,10.2353,87.991,87.93,61.63367141]
[1770434666967,58.72002754,88.008,87.93,61.63367141]
[1770434667474,10.2341,88.001,87.94,61.63367141]
[1770434667675,58.72002754,88.008,87.94,61.63367141]
[1770434669674,68.95352754,88.007,87.94,61.63367141]
[1770434670379,58.72002754,88.007,87.944,61.63367141]
[1770434671380,58.72002754,88.007,87.946,61.63367141]
[1770434672776,58.72002754,88.007,87.948,61.63367141]
[1770434673273,58.72002754,88.007,87.887,34.2]
[1770434673274,58.72002754,88.007,87.95,61.63367141]
[1770434674774,58.72002754,88.007,87.953,61.63367141]
[1770434675579,58.72002754,88.02,87.958,61.63367141]
[1770434675779,59.95083024,88.032,87.958,61.63367141]
[1770434676380,59.95083024,88.032,87.978,63.5385579]
[1770434677578,59.95083024,88.032,87.98,63.5385579]
[1770434678279,59.95083024,88.032,87.989,73.7739579]
[1770434678979,59.95083024,88.047,87.998,63.5385579]
[1770434679977,59.95083024,88.047,88.003,63.5385579]
[1770434680570,59.95083024,88.047,88.005,63.5385579]
[1770434683285,10.228,88.054,88.005,63.5385579]
[1770434683482,59.95083024,88.053,88.005,63.5385579]
[1770434684677,10.2284,88.05,88.005,63.5385579]
[1770434685080,59.95083024,88.049,88.005,63.5385579]
[1770434690274,59.95083024,88.046,88.005,63.5385579]
[1770434690474,59.95083024,88.046,87.964,63.5385579]
[1770434690785,59.95083024,88.046,87.967,63.5385579]
[1770434691685,59.95083024,88.044,87.991,63.5385579]
[1770434692778,59.95083024,88.031,87.966,63.5385579]
[1770434694688,70.18333024,88.015,87.966,63.5385579]
[1770434696992,1.97752554,88.071,87.97,63.5385579]
[1770434696993,59.95083024,88.039,87.97,63.5385579]
[1770434697595,10.2293,88.043,87.988,63.5385579]
[1770434700299,10.2285,88.05,87.992,63.5385579]
[1770434700502,70.17933024,88.05,87.992,63.5385579]
[1770434701693,70.17933024,88.05,87.994,63.5385579]
[1770434703000,59.95083024,88.075,87.998,63.5385579]
[1770434703496,70.17493024,88.088,88.029,63.5385579]
[1770434704696,70.17493024,88.088,88.034,63.5385579]
[1770434704896,70.17573024,88.08,88.034,63.5385579]
[1770434705402,59.95083024,88.08,88.034,63.5385579]
[1770434705898,59.95083024,88.08,88.037,60.64255543]
[1770434706805,10.2238,88.09,88.04,60.64255543]
[1770434707201,70.94160137,88.09,88.04,60.64255543]
[1770434708209,70.94160137,88.09,88.04,70.87205543]
[1770434709111,60.71780137,88.09,88.04,70.87205543]
[1770434710010,158.9195,88.155,87.979,34.2]
[1770434710011,60.95347955,88.103,88.058,58.5141258]
[1770434710910,60.95347955,88.13,88.062,58.5141258]
[1770434712012,20.427,88.179,88.008,159.1846]
[1770434712013,10.2183,88.137,88.072,58.5141258]
[1770434712207,60.95347955,88.143,88.072,58.5141258]
[1770434713821,60.95347955,88.143,88.015,27.68397304]
[1770434713822,60.95347955,88.167,88.097,58.5141258]
[1770434714009,159.04,88.202,88.097,58.5141258]
[1770434714010,60.95347955,88.16,88.097,58.5141258]
[1770434714211,60.95347955,88.16,88.082,58.5141258]
[1770434715016,60.95347955,88.139,88.082,58.5141258]
[1770434716219,10.2195,88.127,88.082,58.5141258]
[1770434716510,60.95347955,88.139,88.082,58.5141258]
[1770434718719,71.17157955,88.139,88.086,58.5141258]
[1770434720223,71.17247955,88.131,88.086,58.5141258]
[1770434722326,10.22,88.123,88.086,58.5141258]
[1770434722722,60.95347955,88.131,88.086,58.5141258]
[1770434722918,60.95347955,88.131,88.025,34.2]
[1770434723221,60.95347955,88.131,87.98,34.63480628]
[1770434723222,60.95347955,88.131,88.038,58.5141258]
[1770434723726,71.17567955,88.104,88.046,58.5141258]
[1770434724222,60.95347955,88.104,88.046,58.5141258]
[1770434725727,60.95347955,88.104,88.049,58.5141258]
[1770434728729,10.2234,88.093,88.049,58.5141258]
[1770434729226,60.95347955,88.093,88.019,58.5141258]
[1770434730127,60.95347955,88.091,88.038,58.5141258]
[1770434731529,60.95347955,88.091,88.04,58.5141258]
[1770434732926,60.95347955,88.091,88.046,58.5141258]
[1770434734130,60.95347955,88.104,88.048,68.7426258]
[1770434734526,60.95347955,88.16,88.048,58.5141258]
[1770434734726,60.95347955,88.14,88.084,58.5141258]
[1770434735824,60.95347955,88.14,88.088,10.2239]
[1770434739142,60.95347955,88.14,88.088,69.22366567]
[1770434742541,60.95347955,88.14,88.096,10.223]
[1770434743038,10.2164,88.154,88.103,58.99976567]
[1770434743237,73.81277036,88.154,88.103,58.99976567]
[1770434743638,63.59637036,88.154,88.106,58.99976567]
[1770434744542,63.59637036,88.154,88.107,10.2217]
[1770434744941,63.59637036,88.154,88.108,58.99976567]
[1770434745142,63.59637036,88.154,88.05,20.4568]
[1770434745143,63.59637036,88.174,88.11,58.99976567]
[1770434745539,63.59637036,88.174,88.121,10.2201]
[1770434745745,63.59637036,88.174,88.122,58.99976567]
[1770434746341,63.59637036,88.2,88.124,58.99976567]
[1770434746541,10.5162898,88.252,88.124,58.99976567]
[1770434746542,63.59637036,88.214,88.124,58.99976567]
[1770434746744,63.59637036,88.214,88.149,58.99976567]
[1770434747444,63.59637036,88.201,88.149,58.99976567]
[1770434749042,63.59637036,88.215,88.149,58.99976567]
[1770434749435,20.4034,88.281,88.083,27.68397304]
[1770434749436,63.59637036,88.225,88.164,58.99976567]
[1770434751349,63.59637036,88.225,88.166,58.99976567]
[1770434751840,63.59637036,88.223,88.167,10.2148]
[1770434752046,63.59637036,88.223,88.119,58.99976567]
[1770434752552,63.59637036,88.2,88.136,58.99976567]
[1770434753143,73.80787036,88.196,88.136,58.99976567]
[1770434754741,73.80787036,88.196,88.138,58.99976567]
[1770434758053,63.59637036,88.196,88.14,58.99976567]
[1770434758750,63.59637036,88.196,88.086,34.2]
[1770434758751,63.59637036,88.196,88.142,58.99976567]
[1770434759446,63.59637036,88.196,88.146,58.99976567]
[1770434760743,63.59637036,88.196,88.15,58.99976567]
[1770434761057,63.59637036,88.216,88.15,58.99976567]
[1770434762059,63.59637036,88.248,88.175,58.99976567]
[1770434762655,63.59637036,88.234,88.175,58.99976567]
[1770434762952,63.59637036,88.283,88.177,58.99976567]
[1770434763356,63.59637036,88.266,88.177,58.99976567]
[1770434763558,1.97324216,88.267,88.176,34.2]
[1770434763559,63.59637036,88.254,88.196,58.99976567]
[1770434763957,63.59637036,88.254,88.212,69.20926567]
[1770434766060,63.59637036,88.254,88.198,59.70397183]
[1770434766246,63.59637036,88.254,88.157,59.70397183]
[1770434766445,63.48228072,88.224,88.16,59.70397183]
[1770434766850,1.97290096,88.277,88.16,59.70397183]
[1770434767405,1.97290096,88.277,88.147,34.2]
[1770434767655,1.97290096,88.277,88.148,59.70397183]
[1770434767853,10.208,88.227,88.174,59.70397183]
[1770434768050,158.7172,88.268,88.109,59.70397183]
[1770434768461,158.7292,88.261,88.153,62.76620139]
[1770434768844,62.53787952,88.26,88.153,62.76620139]
[1770434769246,62.53787952,88.227,88.153,62.76620139]
[1770434770761,72.74877952,88.201,88.153,62.76620139]
[1770434771447,62.53787952,88.201,88.153,72.98250139]
[1770434772253,10.2094,88.214,88.161,10.2154]
[1770434772456,72.74727952,88.214,88.161,10.2154]
[1770434774359,72.74727952,88.214,88.153,62.76620139]
[1770434774960,62.53787952,88.214,88.157,62.76620139]
[1770434776866,62.53787952,88.214,88.161,10.2154]
[1770434778660,62.53787952,88.214,88.161,72.98160139]
[1770434778859,62.53787952,88.236,88.173,62.76620139]
[1770434779859,62.53787952,88.236,88.183,10.2129]
[1770434782467,62.53787952,88.236,88.194,10.2116]
[1770434783166,62.53787952,88.264,88.194,62.76620139]
[1770434783577,62.53787952,88.264,88.22,10.2086]
[1770434790775,62.53787952,88.261,88.211,10.2097]
[1770434791777,62.53787952,88.259,88.211,10.2097]
[1770434792175,62.53787952,88.257,88.202,10.2107]
[1770434793978,62.53787952,88.257,88.211,10.2097]
[1770434795083,62.53787952,88.255,88.202,10.2107]
[1770434795785,60.80447057,88.242,88.193,10.2117]
[1770434796180,60.80447057,88.242,88.212,10.2095]
[1770434798881,60.80447057,88.256,88.22,10.2087]
[1770434799586,60.80447057,88.256,88.206,62.62673113]
[1770434799587,60.80447057,88.256,88.228,10.2077]
[1770434800183,60.80447057,88.276,88.228,10.2077]
[1770434801984,60.80447057,88.274,88.228,10.2077]
[1770434803487,60.80447057,88.289,88.245,62.62673113]
[1770434803678,60.80447057,88.333,88.245,62.62673113]
[1770434804287,60.80447057,88.32,88.26,72.83073113]
[1770434805086,60.80447057,88.318,88.26,72.83073113]
[1770434805681,319.57257016,88.376,88.26,10.204]
[1770434805682,60.80447057,88.314,88.26,10.204]
[1770434806678,60.80447057,88.314,88.269,62.62673113]
[1770434807287,60.80447057,88.375,88.269,62.62673113]
[1770434807488,60.80447057,88.343,88.279,10.2018]
[1770434808190,60.80447057,88.343,88.29,72.82723113]
[1770434809090,60.80447057,88.343,88.3,10.1994]
[1770434809292,60.80447057,88.375,88.301,62.62673113]
[1770434809790,60.80447057,88.355,88.301,62.62673113]
[1770434810088,60.80447057,88.355,88.288,10.2008]
[1770434810282,60.80447057,88.355,88.288,72.82753113]
[1770434810481,60.80447057,88.355,88.299,10.1995]
[1770434810692,60.80447057,88.355,88.299,72.82623113]
[1770434810890,60.80447057,88.355,88.248,62.62673113]
[1770434811488,60.80447057,88.341,88.274,62.62673113]
[1770434811690,60.80447057,88.341,88.259,62.62673113]
[1770434811990,60.80447057,88.308,88.243,10.206]
[1770434812189,60.80447057,88.308,88.241,62.62673113]
[1770434812687,60.80447057,88.305,88.221,62.62673113]
[1770434813388,60.80447057,88.289,88.223,72.83503113]
[1770434813985,60.80447057,88.289,88.235,62.62673113]
[1770434814185,60.80447057,88.309,88.235,62.62673113]
[1770434814385,60.80447057,88.326,88.235,62.62673113]
[1770434814690,60.80447057,88.326,88.273,72.82923113]
[1770434814891,60.80447057,88.345,88.273,62.62673113]
[1770434815692,60.80447057,88.345,88.283,72.82803113]
[1770434815993,60.80447057,88.345,88.283,62.62673113]
[1770434816899,60.80447057,88.343,88.246,62.62673113]
[1770434817694,10.1975,88.317,88.252,62.62673113]
[1770434817892,60.80447057,88.321,88.252,62.62673113]
[1770434818498,60.80447057,88.343,88.269,62.62673113]
[1770434819188,60.80447057,88.333,88.269,62.62673113]
[1770434819992,60.80447057,88.321,88.252,62.62673113]
[1770434820803,60.80447057,88.338,88.254,62.62673113]
[1770434821197,10.1962,88.328,88.267,10.2032]
[1770434821399,60.80447057,88.328,88.268,62.62673113]
[1770434821594,60.80447057,88.344,88.268,62.62673113]
[1770434821793,10.1926,88.36,88.291,10.2004]
[1770434821993,60.80447057,88.361,88.292,62.62673113]
[1770434822494,60.80447057,88.371,88.292,62.62673113]
[1770434824000,60.80447057,88.344,88.292,62.62673113]
[1770434826208,65.44967151,88.375,88.292,62.62673113]
[1770434826403,65.44967151,88.375,88.315,75.86372076]
[1770434828411,65.30362306,88.428,88.329,62.69236025]
[1770434829305,65.30362306,88.392,88.311,62.69236025]
[1770434829614,65.30362306,88.392,88.205,34.63480628]
[1770434829615,65.30362306,88.392,88.269,62.69236025]
[1770434829803,65.30362306,88.392,88.212,27.28264898]
[1770434829804,75.49662306,88.356,88.301,10.1993]
[1770434830312,65.30362306,88.356,88.301,10.1993]
[1770434830514,65.30362306,88.415,88.315,10.1977]
[1770434831106,65.30362306,88.367,88.306,10.1987]
[1770434832012,65.30362306,88.367,88.315,10.1977]
[1770434833312,65.30362306,88.367,88.326,10.1964]
[1770434833507,65.30362306,88.367,88.302,62.69236025]
[1770434834411,65.30362306,88.365,88.306,10.1986]
[1770434834616,65.30362306,88.365,88.302,62.69236025]
[1770434835017,65.30362306,88.365,88.315,10.1977]
[1770434835215,65.30362306,88.365,88.316,62.69236025]
[1770434835404,65.30362306,88.388,88.316,62.69236025]
[1770434835808,65.30362306,88.373,88.316,62.69236025]
[1770434836516,65.30362306,88.389,88.319,62.69236025]
[1770434836706,158.58,88.426,88.323,62.69236025]
[1770434836707,65.30362306,88.425,88.323,62.69236025]
[1770434836908,65.30362306,88.411,88.349,62.69236025]
[1770434837109,65.30362306,88.411,88.333,62.69236025]
[1770434838015,65.30362306,88.38,88.322,10.1969]
[1770434838212,65.30362306,88.38,88.322,72.88926025]
[1770434838816,65.30362306,88.418,88.333,62.69236025]
[1770434839820,75.49172306,88.399,88.342,10.1945]
[1770434840214,65.30362306,88.399,88.342,62.69236025]
[1770434841119,65.30362306,88.399,88.351,62.69236025]
[1770434842519,65.30362306,88.409,88.351,62.69236025]
[1770434842725,10.187,88.408,88.351,62.69236025]
[1770434842917,75.49062306,88.408,88.351,62.69236025]
[1770434843118,65.30362306,88.408,88.334,62.69236025]
[1770434843422,65.30362306,88.385,88.334,62.69236025]
[1770434844716,65.30362306,88.406,88.345,10.1942]
[1770434844921,65.30362306,88.406,88.346,62.69236025]
[1770434845319,65.30362306,88.404,88.346,62.69236025]
[1770434845525,65.30362306,88.404,88.331,62.69236025]
[1770434846119,10.1905,88.378,88.331,62.69236025]
[1770434846321,65.30362306,88.377,88.331,62.69236025]
[1770434847517,10.1888,88.392,88.332,10.1957]
[1770434847719,10.1888,88.392,88.333,62.69236025]
[1770434848725,10.1888,88.392,88.336,62.69236025]
[1770434848926,75.49242306,88.392,88.336,62.69236025]